bitfinex/quotes_BTCUSD_20241123
["timestamp","ask_amount","ask_price","bid_price","bid_amount"]
[1732349912984,0.05473822,98110.0,98058.0,0.0007635]
[1732349913193,0.05473822,98110.0,98061.0,0.0823]
[1732349913414,0.05473822,98100.0,98065.0,0.0823]
[1732349913613,0.05473822,98100.0,98070.0,0.1284]
[1732349913934,0.05473822,98100.0,98071.0,0.1284]
[1732349914146,0.0008603,98089.0,98071.0,0.1284]
[1732349919091,0.05473822,98100.0,98071.0,0.1284]
[1732349919546,0.05473822,98100.0,98072.0,0.00633874]
[1732349919989,0.05473822,98100.0,98073.0,0.00633874]
[1732349920114,0.05473822,98100.0,98074.0,0.00633874]
[1732349920343,0.05473822,98100.0,98075.0,0.00633874]
[1732349920555,0.05324034,98100.0,98076.0,0.00633874]
[1732349920775,0.05324034,98100.0,98077.0,0.00633874]
[1732349920986,0.05324034,98100.0,98078.0,0.00633874]
[1732349921203,0.05324034,98100.0,98079.0,0.00633874]
[1732349921429,0.05324034,98100.0,98071.0,0.1284]
[1732349921867,0.05324034,98100.0,98072.0,0.0468]
[1732349922557,0.05324034,98100.0,98069.0,0.01958971]
[1732349922558,0.05324034,98100.0,98074.0,0.0468]
[1732349924911,0.05324034,98100.0,98056.0,0.40194664]
[1732349925116,0.05324034,98100.0,98062.0,0.0017196]
[1732349925324,0.1121,98102.0,98062.0,0.0017196]
[1732349925532,0.05559802,98100.0,98062.0,0.0017196]
[1732349926357,0.0485,98089.0,98062.0,0.0017196]
[1732349926783,0.0485,98089.0,98063.0,0.05293874]
[1732349926784,0.000858,98089.0,98063.0,0.05293874]
[1732349926983,0.000858,98089.0,98065.0,0.0466]
[1732349927225,0.000858,98089.0,98066.0,0.00633874]
[1732349927437,0.000858,98089.0,98045.0,0.00825846]
[1732349927438,0.0783,98088.0,98026.0,0.17610477]
[1732349927644,0.0783,98088.0,98034.0,0.05058162]
[1732349928119,0.0783,98088.0,98035.0,0.0825]
[1732349928803,0.0783,98088.0,98034.0,0.05058162]
[1732349928804,0.0783,98088.0,98036.0,0.08351969]
[1732349929219,0.000858,98089.0,98036.0,0.08351969]
[1732349929675,0.000858,98089.0,98060.0,0.054731]
[1732349929938,0.000858,98089.0,98061.0,0.0825]
[1732349930586,0.000858,98089.0,98062.0,0.0466]
[1732349932295,0.079158,98089.0,98062.0,0.0466]
[1732349932501,0.079158,98089.0,98060.0,0.054731]
[1732349932502,0.00101969,98088.0,98060.0,0.054731]
[1732349932704,0.04776991,98089.0,98061.0,0.1291]
[1732349935626,0.0485,98088.0,98061.0,0.1291]
[1732349936795,0.0485,98088.0,98061.0,0.16149413]
[1732349937227,0.04535329,98088.0,98061.0,0.16149413]
[1732349938935,0.00839329,98088.0,98061.0,0.16149413]
[1732349942074,0.0192632,98089.0,98061.0,0.16149413]
[1732349942982,0.054731,98071.0,98061.0,0.03239413]
[1732349943423,0.054731,98080.0,98056.0,0.0479]
[1732349944276,0.023,98088.0,98056.0,0.0479]
[1732349944514,0.054731,98080.0,98056.0,0.0479]
[1732349944741,0.054731,98080.0,98056.0,0.08013642]
[1732349945187,0.0496,98079.0,98056.0,0.08013642]
[1732349945860,0.054731,98080.0,98056.0,0.08013642]
[1732349945861,0.054731,98080.0,98057.0,0.0485]
[1732349946074,0.054731,98080.0,98058.0,0.0485]
[1732349947998,0.03614029,98086.0,98060.0,0.0485]
[1732349948225,0.03614029,98086.0,98062.0,0.0485]
[1732349948444,0.03614029,98086.0,98055.0,0.03264523]
[1732349948445,0.03614029,98086.0,98063.0,0.0772]
[1732349948669,0.03614029,98086.0,98064.0,0.0485]
[1732349950977,0.054731,98090.0,98064.0,0.0485]
[1732349951207,0.023,98089.0,98064.0,0.0485]
[1732349951922,0.0238599,98089.0,98064.0,0.0485]
[1732349953851,0.054731,98080.0,98064.0,0.0485]
[1732349954087,0.137231,98080.0,98064.0,0.0485]
[1732349954928,0.137231,98080.0,98052.0,0.26401739]
[1732349954929,0.1013553,98080.0,98052.0,0.26401739]
[1732349955137,0.1013553,98080.0,98020.0,0.054731]
[1732349955358,0.0642753,98080.0,98041.0,0.0772]
[1732349955575,0.1190063,98080.0,98041.0,0.0772]
[1732349955820,0.1190063,98080.0,98040.0,0.054731]
[1732349956043,0.1190063,98080.0,98041.0,0.0772]
[1732349956491,0.0820063,98080.0,98041.0,0.0772]
[1732349956910,0.0820063,98080.0,98042.0,0.0782198]
[1732349957322,0.0820063,98080.0,98043.0,0.0772]
[1732349957560,0.03614029,98086.0,98043.0,0.0772]
[1732349957785,0.054731,98080.0,98043.0,0.0772]
[1732349958004,0.054731,98080.0,98040.0,0.09627961]
[1732349958221,0.054731,98080.0,98041.0,0.0485]
[1732349958461,0.054731,98080.0,98048.0,0.1257]
[1732349958696,0.054731,98080.0,98052.0,0.0772]
[1732349958906,0.054731,98080.0,98054.0,0.081]
[1732349958907,0.018671,98080.0,98054.0,0.081]
[1732349959124,0.018671,98080.0,98055.0,0.048]
[1732349962447,0.054731,98080.0,98055.0,0.048]
[1732349963069,0.03342101,98080.0,98055.0,0.048]
[1732349966379,0.03342101,98080.0,98055.0,0.088345]
[1732349967435,0.03342101,98080.0,98055.0,0.49148318]
[1732349967761,0.023,98083.0,98056.0,0.048]
[1732349968000,0.023,98083.0,98058.0,0.081]
[1732349968633,0.023,98083.0,98059.0,0.048]
[1732349969059,0.0008599,98089.0,98061.0,0.048]
[1732349969262,0.0008599,98089.0,98060.0,0.054731]
[1732349969467,0.054731,98090.0,98062.0,0.129]
[1732349969697,0.054731,98090.0,98058.0,0.40330229]
[1732349969915,0.054731,98090.0,98067.0,0.129]
[1732349970772,0.0008604,98100.0,98060.0,0.45803329]
[1732349970976,0.0008604,98100.0,98071.0,0.129]
[1732349971217,0.0555914,98100.0,98073.0,0.081]
[1732349972293,0.054731,98090.0,98073.0,0.081]
[1732349972454,0.0487,98099.0,98073.0,0.081]
[1732349972835,0.054731,98090.0,98073.0,0.081]
[1732349973442,0.0487,98099.0,98073.0,0.081]
[1732349974128,0.054731,98090.0,98073.0,0.081]
[1732349974330,0.0487,98099.0,98073.0,0.081]
[1732349974502,0.0487,98099.0,98073.0,0.12273959]
[1732349976342,0.0487,98099.0,98074.0,0.129]
[1732349976804,0.0555914,98100.0,98076.0,0.081]
[1732349977465,0.0555914,98100.0,98077.0,0.129]
[1732349979065,0.0555914,98100.0,98078.0,0.40341699]
[1732349979315,0.054731,98100.0,98077.0,0.129]
[1732349980207,0.054731,98100.0,98084.0,0.27319943]
[1732349980663,0.054731,98100.0,98077.0,0.129]
[1732349980664,0.054731,98100.0,98085.0,0.0101431]
[1732349980887,0.054731,98100.0,98086.0,0.0101431]
[1732349981117,0.5475,98103.0,98087.0,0.1327431]
[1732349981350,0.5475,98103.0,98087.0,0.39579943]
[1732349981574,0.5475,98103.0,98087.0,0.1226]
[1732349982019,0.5475,98103.0,98090.0,0.27311391]
[1732349982474,0.054731,98110.0,98090.0,0.1226]
[1732349982689,0.49822286,98112.0,98090.0,0.39571391]
[1732349982950,0.49822286,98112.0,98095.0,0.27311391]
[1732349983192,0.49822286,98112.0,98096.0,0.1226]
[1732349984072,0.0482,98123.0,98096.0,0.1226]
[1732349984304,0.054731,98120.0,98098.0,0.0769]
[1732349984939,0.054731,98110.0,98098.0,0.0769]
[1732349985140,0.054731,98120.0,98099.0,0.1226]
[1732349986452,0.054731,98120.0,98100.0,0.0769]
[1732349986702,0.054731,98130.0,98102.0,0.0769]
[1732349987344,0.054731,98130.0,98104.0,0.0769]
[1732349987567,0.054731,98130.0,98105.0,0.0457]
[1732349987786,0.054731,98130.0,98107.0,0.0457]
[1732349988036,0.054731,98130.0,98108.0,0.0769]
[1732349988275,0.054731,98120.0,98108.0,0.0769]
[1732349989155,0.054731,98120.0,98108.0,0.11873734]
[1732349989410,0.054731,98120.0,98091.0,0.17100708]
[1732349989821,0.054731,98120.0,98080.0,0.054731]
[1732349990049,0.051,98137.0,98090.0,0.054731]
[1732349990275,0.054731,98130.0,98091.0,0.00101934]
[1732349990708,0.023,98143.0,98099.0,0.0457]
[1732349990939,0.054731,98130.0,98098.0,0.0017192]
[1732349991167,0.00172,98148.0,98098.0,0.0017192]
[1732349991168,0.00172,98148.0,98100.0,0.054731]
[1732349991392,0.054731,98140.0,98101.0,0.00101921]
[1732349991605,0.054731,98130.0,98109.0,0.0769]
[1732349991837,0.054731,98130.0,98113.0,0.0457]
[1732349992045,0.054731,98130.0,98114.0,0.0769]
[1732349993119,0.054731,98124.0,98114.0,0.0769]
[1732349993550,0.054731,98124.0,98114.0,0.11859896]
[1732349995324,0.054731,98124.0,98114.0,0.0769]
[1732349996922,0.054731,98124.0,98090.0,0.13634356]
[1732349997127,0.054731,98124.0,98080.0,0.054731]
[1732349997128,0.054731,98124.0,98081.0,0.023]
[1732349997541,0.054731,98120.0,98090.0,0.054731]
[1732349997743,0.054731,98120.0,98091.0,0.00101928]
[1732349998164,0.0192087,98120.0,98082.0,0.00101928]
[1732349998385,0.0192087,98120.0,98090.0,0.054731]
[1732349998661,0.0192087,98120.0,98080.0,0.054731]
[1732349999812,0.0192087,98120.0,98081.0,0.00735648]
[1732350000038,0.0192087,98120.0,98083.0,0.0469]
[1732350000259,0.0192087,98120.0,98093.0,0.0788]
[1732350000492,0.0192087,98120.0,98095.0,0.0788]
[1732350000719,0.0482,98134.0,98098.0,0.0788]
[1732350000970,0.054731,98120.0,98098.0,0.0788]
[1732350001219,0.054731,98130.0,98099.0,0.00101928]
[1732350001442,0.054731,98130.0,98102.0,0.0469]
[1732350001681,0.054731,98130.0,98105.0,0.0788]
[1732350001910,0.054731,98130.0,98106.0,0.0469]
[1732350002146,0.054731,98130.0,98107.0,0.0788]
[1732350003556,0.0008596,98123.0,98107.0,0.0788]
[1732350003797,0.054731,98120.0,98107.0,0.0788]
[1732350004260,0.0008596,98123.0,98107.0,0.0788]
[1732350004716,0.0008596,98123.0,98107.0,0.11933816]
[1732350005636,0.054731,98130.0,98107.0,0.11933816]
[1732350011578,0.054731,98130.0,98108.0,0.0469]
[1732350011993,0.0496,98136.0,98108.0,0.0469]
[1732350011994,0.054731,98120.0,98108.0,0.0469]
[1732350012237,0.0828,98129.0,98108.0,0.0469]
[1732350013723,0.054731,98120.0,98108.0,0.0469]
[1732350014812,0.0828,98129.0,98108.0,0.0469]
[1732350014813,0.04654929,98129.0,98108.0,0.0469]
[1732350015132,0.054731,98130.0,98108.0,0.0469]
[1732350015135,0.023,98135.0,98108.0,0.0469]
[1732350015577,0.0555905,98130.0,98108.0,0.0469]
[1732350019026,0.054731,98120.0,98108.0,0.0469]
[1732350019243,0.1322,98119.0,98107.0,0.04053816]
[1732350019684,0.1322,98119.0,98095.0,0.1269]
[1732350019907,0.1322,98119.0,98095.0,0.16732668]
[1732350020265,0.023,98118.0,98095.0,0.16732668]
[1732350021126,0.054731,98110.0,98095.0,0.16732668]
[1732350021352,0.023,98118.0,98095.0,0.16732668]
[1732350024966,0.023,98118.0,98080.0,0.0564502]
[1732350026844,0.054731,98110.0,98080.0,0.04342856]
[1732350027057,0.054731,98110.0,98095.0,0.001719]
[1732350028766,0.02707368,98110.0,98095.0,0.001719]
[1732350029453,0.04046186,98109.0,98095.0,0.001719]
[1732350030950,0.0779,98108.0,98095.0,0.001719]
[1732350031858,0.07298532,98108.0,98095.0,0.04256448]
[1732350032073,0.04046186,98109.0,98095.0,0.001719]
[1732350032659,0.054731,98110.0,98095.0,0.001719]
[1732350035288,0.054731,98110.0,98073.0,0.31180498]
[1732350035501,0.054731,98110.0,98090.0,0.04082488]
[1732350036109,0.023,98113.0,98090.0,0.04082488]
[1732350036313,0.023,98113.0,98080.0,0.054731]
[1732350038464,0.0779,98122.0,98101.0,0.0789]
[1732350038680,0.048,98125.0,98102.0,0.046]
[1732350038887,0.048,98125.0,98123.0,0.00106407]
[1732350039097,0.048,98125.0,98124.0,0.00106407]
[1732350039344,0.0489,98124.0,98123.0,0.00106407]
[1732350039561,0.0489,98124.0,98095.0,0.0477194]
[1732350039848,0.054731,98120.0,98095.0,0.0477194]
[1732350040489,0.023,98119.0,98095.0,0.0477194]
[1732350044487,0.023,98119.0,98096.0,0.01014096]
[1732350044700,0.023,98119.0,98097.0,0.01014096]
[1732350044900,0.023,98119.0,98098.0,0.01014096]
[1732350045117,0.023,98119.0,98095.0,0.08990151]
[1732350045336,0.023,98119.0,98096.0,0.40255576]
[1732350046012,0.023,98119.0,98097.0,0.01014075]
[1732350046233,0.023,98119.0,98098.0,0.41269651]
[1732350046456,0.023,98119.0,98107.0,0.27259727]
[1732350046668,0.023,98119.0,98108.0,0.01014075]
[1732350046884,0.023,98119.0,98109.0,0.01014075]
[1732350047298,0.023,98119.0,98110.0,0.01014075]
[1732350047521,0.02068969,98120.0,98111.0,0.01014075]
[1732350047760,0.02068969,98120.0,98102.0,0.27259727]
[1732350047984,0.02068969,98120.0,98103.0,0.01014068]
[1732350048190,0.02068969,98120.0,98104.0,0.01014068]
[1732350048401,0.0489,98124.0,98105.0,0.01014068]
[1732350048626,0.0489,98124.0,98106.0,0.01014068]
[1732350048849,0.054731,98120.0,98107.0,0.01014068]
[1732350049082,0.054731,98120.0,98108.0,0.01014068]
[1732350049286,0.054731,98120.0,98109.0,0.01014068]
[1732350049497,0.109462,98120.0,98110.0,0.01014068]
[1732350049757,0.109462,98120.0,98102.0,0.27259727]
[1732350049758,0.109462,98120.0,98111.0,0.01014068]
[1732350049996,0.109462,98120.0,98102.0,0.27263139]
[1732350049997,0.054731,98120.0,98102.0,0.27263139]
[1732350050619,0.054731,98120.0,98103.0,0.27263139]
[1732350051054,0.0555907,98120.0,98103.0,0.27263139]
[1732350051296,0.0555907,98120.0,98102.0,0.27263139]
[1732350051530,0.0555907,98120.0,98103.0,0.27263139]
[1732350052406,0.054731,98113.0,98102.0,0.27263139]
[1732350053550,0.000774,98113.0,98101.0,0.27263139]
[1732350054167,0.000774,98113.0,98096.0,0.02045531]
[1732350054552,0.000774,98113.0,98095.0,0.08990151]
[1732350055185,0.054731,98121.0,98095.0,0.08990151]
[1732350058985,0.0471,98120.0,98095.0,0.08990151]
[1732350059209,0.054731,98110.0,98095.0,0.08990151]
[1732350060947,0.0782,98114.0,98095.0,0.08990151]
[1732350061171,0.054731,98110.0,98095.0,0.08990151]
[1732350061516,0.0782,98114.0,98095.0,0.08990151]
[1732350064020,0.0782,98114.0,98103.0,0.40296772]
[1732350064459,0.0782,98114.0,98104.0,0.00633793]
[1732350064677,0.0782,98114.0,98105.0,0.00633793]
[1732350064914,0.0782,98114.0,98106.0,0.00633793]
[1732350065133,0.0782,98114.0,98104.0,0.40296772]
[1732350065134,0.0782,98114.0,98107.0,0.00633793]
[1732350065410,0.0782,98114.0,98108.0,0.00633793]
[1732350065621,0.0782,98114.0,98113.0,0.27294785]
[1732350065848,0.0782,98114.0,98109.0,0.00633793]
[1732350066067,0.0782,98114.0,98113.0,0.27294889]
[1732350067004,0.0782,98114.0,98105.0,0.40296772]
[1732350067219,0.0782,98114.0,98095.0,0.08990151]
[1732350067433,0.0782,98114.0,98104.0,0.40302469]
[1732350067649,0.0782,98114.0,98105.0,0.40302469]
[1732350068974,0.0782,98114.0,98113.0,0.27295228]
[1732350069181,0.0782,98114.0,98113.0,0.27295518]
[1732350069410,0.0479601,98120.0,98113.0,0.00633799]
[1732350069622,0.0479601,98120.0,98114.0,0.00633799]
[1732350069828,0.0008601,98120.0,98115.0,0.00633799]
[1732350070039,0.0008601,98120.0,98116.0,0.00633799]
[1732350070255,0.0008601,98120.0,98117.0,0.00633799]
[1732350070492,0.0008601,98120.0,98112.0,0.27295518]
[1732350070724,0.0008601,98120.0,98113.0,0.2792928]
[1732350070943,0.0008601,98120.0,98114.0,0.00633762]
[1732350071152,0.0008601,98120.0,98115.0,0.00633762]
[1732350071579,0.0008601,98120.0,98112.0,0.27295518]
[1732350071580,0.0455,98119.0,98116.0,0.00633762]
[1732350071810,0.023,98118.0,98117.0,0.00633762]
[1732350072031,0.023,98114.0,98112.0,0.04221075]
[1732350072250,0.0008601,98120.0,98074.0,0.0755]
[1732350072251,0.123,98108.0,98099.0,0.27294141]
[1732350072461,0.023,98104.0,98096.0,0.27294141]
[1732350072682,0.0685,98100.0,98095.0,0.27466081]
[1732350072895,0.0455,98098.0,98095.0,0.0017194]
[1732350073359,0.023,98097.0,98096.0,0.28315126]
[1732350073569,0.023,98097.0,98096.0,0.01014408]
[1732350074223,0.01739938,98097.0,98096.0,0.01014379]
[1732350074432,0.0455,98098.0,98096.0,0.01014379]
[1732350074675,0.0455,98098.0,98097.0,0.01014379]
[1732350074895,0.0455,98098.0,98097.0,0.28322722]
[1732350075114,0.0455,98098.0,98097.0,0.28322686]
[1732350075346,0.0455,98098.0,98097.0,0.01014343]
[1732350076276,0.0455,98098.0,98096.0,0.0017202]
[1732350077175,0.0455,98098.0,98097.0,0.22751919]
[1732350077581,0.0455,98098.0,98096.0,0.22923939]
[1732350078480,0.0455,98098.0,98096.0,0.0017202]
[1732350078694,0.0455,98105.0,98096.0,0.22923939]
[1732350079367,0.0455,98105.0,98098.0,0.22751919]
[1732350079612,0.0455,98105.0,98097.0,0.22751919]
[1732350080753,0.0455,98105.0,98101.0,0.1819104]
[1732350081457,0.0455,98105.0,98101.0,0.22751919]
[1732350082127,0.0455,98105.0,98100.0,0.22751919]
[1732350083212,0.0798,98104.0,98098.0,0.22751919]
[1732350083449,0.0798,98104.0,98096.0,0.0017202]
[1732350083679,0.0451,98102.0,98096.0,0.0017202]
[1732350083919,0.023,98103.0,98097.0,0.00633961]
[1732350084154,0.0451,98100.0,98098.0,0.00633961]
[1732350084390,0.0451,98100.0,98099.0,0.00633961]
[1732350084623,0.0681,98100.0,98099.0,0.00633961]
[1732350085384,0.2479,98100.0,98099.0,0.00633961]
[1732350085593,0.2479,98100.0,98096.0,0.0017202]
[1732350085594,0.2249,98099.0,98096.0,0.00068402]
[1732350085800,0.2479,98099.0,98095.0,0.04326563]
[1732350086061,0.2479,98099.0,98095.0,0.04220557]
[1732350086282,0.2479,98099.0,98095.0,0.04194723]
[1732350088896,0.2479,98099.0,98096.0,0.0017206]
[1732350093549,0.123,98097.0,98096.0,0.0017206]
[1732350093793,0.2499,98097.0,98096.0,0.0017206]
[1732350095436,0.3499,98097.0,98096.0,0.0017206]
[1732350101461,0.3479,98097.0,98096.0,0.0017206]
[1732350101668,0.3499,98097.0,98096.0,0.0017206]
[1732350101886,0.42506206,98097.0,98096.0,0.0017206]
[1732350102526,0.3479,98097.0,98096.0,0.0017206]
[1732350103074,0.3499,98097.0,98096.0,0.0017206]
[1732350103281,0.3479,98097.0,98096.0,0.0017206]
[1732350103954,0.3499,98097.0,98096.0,0.0017206]
[1732350108840,0.34917345,98097.0,98096.0,0.0017206]
[1732350113533,0.023,98086.0,98033.0,0.22830179]
[1732350113745,0.054731,98060.0,98036.0,0.00101988]
[1732350113959,0.00101981,98059.0,98036.0,0.00101988]
[1732350114195,0.02401981,98069.0,98036.0,0.00101988]
[1732350114410,0.054731,98060.0,98036.0,0.00101988]
[1732350114626,0.00101981,98059.0,98036.0,0.00101988]
[1732350115099,0.00101981,98059.0,98040.0,0.00072655]
[1732350115312,0.00101981,98068.0,98042.0,0.00072655]
[1732350115562,0.00101981,98067.0,98043.0,0.00101981]
[1732350115791,0.00101981,98067.0,98042.0,0.00072655]
[1732350115792,0.00101981,98068.0,98044.0,0.00101981]
[1732350116001,0.00101981,98067.0,98043.0,0.00101981]
[1732350116246,0.00101981,98068.0,98043.0,0.00101981]
[1732350116483,0.00101981,98067.0,98045.0,0.0756]
[1732350116720,0.00101981,98068.0,98047.0,0.0756]
[1732350116964,0.00101981,98067.0,98049.0,0.048]
[1732350117181,0.00101981,98068.0,98051.0,0.048]
[1732350117390,0.00101981,98067.0,98052.0,0.0756]
[1732350117575,0.00101981,98068.0,98054.0,0.0756]
[1732350117814,0.00127476,98067.0,98040.0,0.06854906]
[1732350118018,0.00127476,98068.0,98040.0,0.054731]
[1732350118258,0.00127476,98068.0,98041.0,0.00050991]
[1732350118681,0.00127476,98068.0,98036.0,0.00050991]
[1732350119114,0.00127476,98068.0,98030.0,0.054731]
[1732350119575,0.00127476,98068.0,98028.0,0.05167652]
[1732350119783,0.00127476,98068.0,98034.0,0.00050991]
[1732350120903,0.00127476,98068.0,98035.0,0.0778]
[1732350121112,0.00127476,98068.0,98037.0,0.0778]
[1732350121366,0.00127476,98068.0,98040.0,0.0778]
[1732350121621,0.054731,98060.0,98042.0,0.0778]
[1732350121832,0.023,98059.0,98042.0,0.0778]
[1732350122078,0.02427477,98059.0,98042.0,0.0778]
[1732350124822,0.02427477,98059.0,98044.0,0.22723449]
[1732350125034,0.054731,98054.0,98044.0,0.22723449]
[1732350125269,0.02427484,98053.0,98044.0,0.22723449]
[1732350125494,0.02427484,98053.0,98033.0,0.04212424]
[1732350126173,0.02427484,98053.0,98034.0,0.00051019]
[1732350127312,0.01817846,98053.0,98034.0,0.00051019]
[1732350128384,0.01817846,98053.0,98035.0,0.0993]
[1732350128611,0.01817846,98053.0,98035.0,0.37218814]
[1732350129078,0.01817846,98053.0,98033.0,0.04212424]
[1732350129293,0.01817846,98053.0,98034.0,0.00051018]
[1732350130652,0.00127484,98053.0,98034.0,0.00051018]
[1732350130915,0.1211282,98057.0,98035.0,0.004]
[1732350131161,0.01056,98057.0,98036.0,0.00101992]
[1732350131375,0.054731,98060.0,98037.0,0.0781]
[1732350131584,0.00076478,98059.0,98038.0,0.00101985]
[1732350131792,0.0451,98065.0,98025.0,0.35528437]
[1732350131999,0.08,98068.0,98030.0,0.054731]
[1732350132237,0.00127471,98067.0,98031.0,0.00076479]
[1732350132450,0.08,98068.0,98057.0,0.22756663]
[1732350132451,0.00127471,98066.0,98057.0,0.22756663]
[1732350132663,0.00127471,98067.0,98057.0,0.22756663]
[1732350132885,0.00127471,98067.0,98030.0,0.054731]
[1732350133310,0.054731,98060.0,98030.0,0.054731]
[1732350133523,0.054731,98060.0,98029.0,0.1]
[1732350133989,0.018561,98060.0,98059.0,0.22760609]
[1732350134209,0.00127471,98067.0,98029.0,0.1]
[1732350134415,0.00127471,98067.0,98063.0,0.22758558]
[1732350134876,0.00127471,98067.0,98036.0,0.0019]
[1732350135098,0.00127471,98067.0,98048.0,0.27314104]
[1732350135306,0.00127471,98067.0,98049.0,0.00076479]
[1732350135512,0.00127471,98067.0,98049.0,0.27390583]
[1732350136499,0.00127471,98067.0,98050.0,0.27314104]
[1732350136704,0.00127471,98067.0,98065.0,0.22768573]
[1732350137578,0.00127471,98067.0,98066.0,0.22768483]
[1732350137799,0.08,98068.0,98066.0,0.22768483]
[1732350138437,0.08,98068.0,98067.0,0.01014596]
[1732350138663,0.08,98068.0,98067.0,0.23783079]
[1732350138910,0.08,98068.0,98067.0,0.01014596]
[1732350139115,0.08,98068.0,98054.0,0.2732218]
[1732350139328,0.054731,98064.0,98054.0,0.2732218]
[1732350139532,0.054731,98064.0,98055.0,0.2732218]
[1732350139738,0.054731,98065.0,98055.0,0.2732218]
[1732350139947,0.054731,98065.0,98054.0,0.2732218]
[1732350140159,0.00127471,98067.0,98054.0,0.2732218]
[1732350140800,0.054731,98070.0,98055.0,0.2732218]
[1732350141012,0.00050992,98069.0,98068.0,0.22777648]
[1732350141235,0.00050992,98071.0,98055.0,0.2732218]
[1732350141451,0.00050992,98071.0,98069.0,0.22777645]
[1732350141887,0.00050992,98071.0,98060.0,0.2732218]
[1732350142111,0.00050992,98071.0,98036.0,0.04369699]
[1732350142354,0.00050992,98071.0,98059.0,0.27324293]
[1732350143204,0.054731,98070.0,98059.0,0.27324293]
[1732350143422,0.00050992,98069.0,98059.0,0.27324293]
[1732350143679,0.0825,98068.0,98059.0,0.27324293]
[1732350143908,0.00050992,98067.0,98060.0,0.27324293]
[1732350144134,0.0451,98072.0,98061.0,0.27324293]
[1732350144378,0.0451,98072.0,98062.0,0.27324293]
[1732350144579,0.0451,98072.0,98061.0,0.27324293]
[1732350144787,0.00783336,98072.0,98061.0,0.27324293]
[1732350145007,0.0776,98078.0,98062.0,0.3503626]
[1732350145215,0.0776,98084.0,98074.0,0.22760821]
[1732350145423,0.0776,98084.0,98062.0,0.0761]
[1732350145654,0.0776,98084.0,98063.0,0.00101961]
[1732350146076,0.0008608,98071.0,98063.0,0.00101961]
[1732350146298,0.054731,98090.0,98063.0,0.00101961]
[1732350146516,0.03732267,98093.0,98063.0,0.00101961]
[1732350146723,0.054731,98090.0,98063.0,0.00101961]
[1732350147510,0.054731,98090.0,98062.0,0.0761]
[1732350148169,0.054731,98080.0,98062.0,0.0761]
[1732350148590,0.054731,98090.0,98063.0,0.00101953]
[1732350148819,0.00050992,98089.0,98078.0,0.22756045]
[1732350149034,0.00050992,98089.0,98082.0,0.22756045]
[1732350149238,0.054731,98090.0,98079.0,0.22756045]
[1732350149443,0.0457,98092.0,98079.0,0.22756045]
[1732350149663,0.0457,98092.0,98084.0,0.22756045]
[1732350149880,0.0008603,98097.0,98086.0,0.22756045]
[1732350150096,0.00137022,98097.0,98080.0,0.27307255]
[1732350150305,0.054731,98090.0,98081.0,0.00101944]
[1732350150513,0.00137022,98097.0,98077.0,0.38953459]
[1732350150514,0.054731,98091.0,98077.0,0.38953459]
[1732350150716,0.00137022,98097.0,98077.0,0.31343459]
[1732350150944,0.054731,98090.0,98077.0,0.27307255]
[1732350151172,0.054731,98090.0,98079.0,0.27307255]
[1732350151384,0.054731,98090.0,98077.0,0.27307255]
[1732350152263,0.054731,98090.0,98076.0,0.27307255]
[1732350152534,0.00137022,98097.0,98075.0,0.27307255]
[1732350152988,0.054731,98090.0,98075.0,0.27307255]
[1732350153200,0.1233,98088.0,98084.0,0.22716378]
[1732350153426,0.1233,98088.0,98084.0,0.22710748]
[1732350153636,0.1233,98088.0,98087.0,0.0007268]
[1732350155662,0.1233,98088.0,98087.0,0.04223427]
[1732350155905,0.1233,98088.0,98087.0,0.0007268]
[1732350156116,0.1233,98088.0,98087.0,0.00706674]
[1732350158421,0.1241606,98088.0,98087.0,0.00706674]
[1732350158841,0.00137022,98097.0,98087.0,0.00706674]
[1732350159101,0.00050992,98096.0,98088.0,0.00633994]
[1732350159545,0.023,98099.0,98089.0,0.00633994]
[1732350159728,0.023,98099.0,98090.0,0.00633994]
[1732350159940,0.023,98099.0,98091.0,0.00633994]
[1732350160215,0.023,98099.0,98092.0,0.00633994]
[1732350160398,0.10875005,98100.0,98087.0,0.0007268]
[1732350160399,0.054731,98100.0,98093.0,0.00633994]
[1732350160599,0.054731,98100.0,98094.0,0.00633994]
[1732350161022,0.054731,98100.0,98095.0,0.00633994]
[1732350161242,0.054731,98105.0,98096.0,0.00633994]
[1732350161489,0.023,98104.0,98087.0,0.04136184]
[1732350161713,0.054731,98100.0,98087.0,0.04136184]
[1732350161925,0.1278,98099.0,98087.0,0.04136184]
[1732350165109,0.12764688,98099.0,98087.0,0.04136184]
[1732350167218,0.12390926,98099.0,98087.0,0.04136184]
[1732350169256,0.12390926,98099.0,98087.0,0.04063504]
[1732350169695,0.12390926,98099.0,98080.0,0.00101947]
[1732350170532,0.12390926,98099.0,98086.0,0.0017208]
[1732350170734,0.12476966,98099.0,98086.0,0.2285344]
[1732350171600,0.12476966,98099.0,98087.0,0.2268136]
[1732350171842,0.12165348,98099.0,98087.0,0.2268136]
[1732350172076,0.11881814,98099.0,98087.0,0.2268136]
[1732350172292,0.023,98098.0,98086.0,0.0017208]
[1732350172497,0.023,98098.0,98086.0,0.2285344]
[1732350172707,0.023,98098.0,98086.0,0.0017208]
[1732350173381,0.0008601,98120.0,98087.0,0.129]
[1732350173606,0.06877083,98141.0,98101.0,0.129]
[1732350173827,0.054731,98140.0,98111.0,0.35245009]
[1732350174061,0.054731,98140.0,98113.0,0.27225009]
[1732350174309,0.054731,98140.0,98114.0,0.27225009]
[1732350174537,0.054731,98140.0,98111.0,0.35245009]
[1732350174754,0.054731,98140.0,98111.0,0.0802]
[1732350175411,0.054731,98140.0,98111.0,0.35245009]
[1732350175665,0.054731,98140.0,98111.0,0.0802]
[1732350175876,0.054731,98140.0,98112.0,0.00101909]
[1732350176290,0.054731,98140.0,98111.0,0.0802]
[1732350177195,0.06,98115.0,98111.0,0.0802]
[1732350177332,0.06,98115.0,98112.0,0.00101912]
[1732350177573,0.05896,98115.0,98112.0,0.00101912]
[1732350178384,0.05896,98115.0,98111.0,0.12218073]
[1732350179632,0.05896,98115.0,98111.0,0.04198073]
[1732350179870,0.05896,98115.0,98103.0,0.0756]
[1732350180082,0.05896,98115.0,98103.0,0.11695858]
[1732350180969,0.05210029,98115.0,98103.0,0.11695858]